bitfinex/quotes_SOLUSD_20260224
["timestamp","ask_amount","ask_price","bid_price","bid_amount"]
[1771928871580,45.53200899,76.869,76.837,0.5]
[1771928871784,5.20213979,76.86,76.837,0.5]
[1771928872989,5.20213979,76.86,76.839,0.5]
[1771928873378,5.20996089,76.86,76.839,0.5]
[1771928874582,5.20996089,76.87,76.839,0.5]
[1771928880400,13.00854411,76.873,76.841,0.5]
[1771928881878,45.52608644,76.879,76.843,0.5]
[1771928882203,5.20996089,76.87,76.843,0.5]
[1771928885098,5.20996089,76.87,76.845,0.5]
[1771928886107,13.00914542,76.869,76.845,0.5]
[1771928890586,5.20996089,76.86,76.845,0.5]
[1771928890900,5.20996089,76.85,76.828,0.5]
[1771928891303,5.20996089,76.84,76.824,0.5]
[1771928891608,5.20996089,76.83,76.802,0.5]
[1771928891808,5.20996089,76.82,76.802,0.5]
[1771928892009,5.20996089,76.81,76.8,0.2]
[1771928892392,5.20996089,76.82,76.8,0.2]
[1771928893106,13.01761283,76.819,76.8,0.2]
[1771928895320,5.20996089,76.81,76.8,0.2]
[1771928897009,13.01761283,76.819,76.8,0.2]
[1771928898595,32.53752157,76.835,76.802,0.5]
[1771928898910,5.20996089,76.83,76.802,0.5]
[1771928900714,13.01591846,76.829,76.802,0.5]
[1771928903319,5.20996089,76.82,76.802,0.5]
[1771928904405,45.55571463,76.829,76.8,0.2]
[1771928904406,5.20996089,76.81,76.8,0.2]
[1771928904805,5.20996089,76.82,76.8,0.2]
[1771928905824,5.20996089,76.82,76.8,0.7]
[1771928906218,5.20996089,76.82,76.801,0.5]
[1771928911911,5.20996089,76.81,76.78,0.2]
[1771928912109,5.20996089,76.79,76.78,0.2]
[1771928912719,5.20996089,76.8,76.78,0.2]
[1771928913227,5.20996089,76.79,76.78,0.2]
[1771928913826,13.02269856,76.789,76.76,0.2]
[1771928914021,5.20996089,76.78,76.76,0.2]
[1771928914227,5.20996089,76.8,76.761,0.5]
[1771928915424,5.20996089,76.79,76.761,0.5]
[1771928916134,13.02269856,76.789,76.762,0.5]
[1771928916311,5.20996089,76.78,76.762,0.5]
[1771928919330,18.23418826,76.78,76.762,0.5]
[1771928920617,18.23418826,76.78,76.76,0.2]
[1771928920816,5.20996089,76.77,76.76,0.2]
[1771928921232,18.23418826,76.78,76.761,0.5]
[1771928921437,5.20996089,76.79,76.762,0.5]
[1771928922636,13.02269856,76.789,76.762,0.5]
[1771928923737,5.20996089,76.78,76.762,0.5]
[1771928923932,5.20996089,76.78,76.76,0.2]
[1771928924236,5.20996089,76.78,76.761,0.5]
[1771928925928,13.02439469,76.779,76.761,0.5]
[1771928926339,13.02439469,76.779,76.76,0.2]
[1771928926530,5.20996089,76.77,76.76,0.2]
[1771928927244,5.20996089,76.77,76.75,0.2]
[1771928927541,5.20996089,76.76,76.745,0.5]
[1771928928627,0.4541941,76.758,76.74,0.2]
[1771928930643,0.4541941,76.758,76.741,0.4817505]
[1771928930644,13.02812772,76.757,76.741,0.4817505]
[1771928932941,13.48232182,76.757,76.741,0.4817505]
[1771928933143,0.4541941,76.756,76.741,0.4817505]
[1771928933349,0.4541941,76.777,76.743,0.4817505]
[1771928933529,0.28432314,76.787,76.743,0.4817505]
[1771928933530,5.20996089,76.77,76.743,0.4817505]
[1771928933722,5.66415499,76.77,76.743,0.4817505]
[1771928933923,5.20996089,76.76,76.743,0.4817505]
[1771928935243,0.45120734,76.767,76.743,0.4817505]
[1771928936251,5.22334749,76.76,76.743,0.4817505]
[1771928937349,18.25100151,76.76,76.743,0.4817505]
[1771928937851,13.02765402,76.76,76.743,0.4817505]
[1771928939446,18.25100151,76.76,76.743,0.4817505]
[1771928940248,5.22334749,76.76,76.743,0.4817505]
[1771928940446,0.45120734,76.767,76.743,0.4817505]
[1771928940951,0.45120734,76.766,76.743,0.4817505]
[1771928942036,0.45120734,76.749,76.74,0.2]
[1771928942549,0.45120734,76.749,76.73,0.2]
[1771928943433,0.45120734,76.739,76.715,0.47661597]
[1771928943634,5.22334749,76.73,76.715,0.47661597]
[1771928944150,13.03288196,76.729,76.715,0.47661597]
[1771928944954,13.03160458,76.737,76.715,0.47661597]
[1771928945544,13.48281192,76.737,76.715,0.47661597]
[1771928953762,13.0318629,76.735,76.715,0.47661597]
[1771928956145,0.45120734,76.735,76.715,0.47661597]
[1771928961957,0.45120734,76.733,76.715,0.47661597]
[1771928966976,0.45159891,76.739,76.715,0.47661597]
[1771928969872,13.48295234,76.738,76.715,0.47661597]
[1771928970767,0.45159891,76.737,76.715,0.47661597]
[1771928970970,0.45159891,76.735,76.715,0.47661597]
[1771928972462,5.22334749,76.73,76.708,0.47021743]
[1771928972656,0.45159891,76.729,76.708,0.47021743]
[1771928972973,0.45159891,76.727,76.708,0.47021743]
[1771928974267,0.45159891,76.737,76.71,0.47021743]
[1771928978177,13.03169307,76.736,76.71,0.47021743]
[1771928978380,0.45159891,76.735,76.71,0.47021743]
[1771928978575,0.45159891,76.729,76.701,0.47021743]
[1771928978781,0.45159891,76.719,76.697,0.47021743]
[1771928978960,45.61092576,76.736,76.697,0.47021743]
[1771928978961,0.45159891,76.729,76.697,0.47021743]
[1771928979164,5.22334749,76.73,76.697,0.47021743]
[1771928979562,0.45159891,76.729,76.697,0.47021743]
[1771928984082,13.03305181,76.728,76.701,0.47021743]
[1771928984787,0.45159891,76.727,76.701,0.47021743]
[1771928987186,13.03339154,76.726,76.702,0.47021743]
[1771928990582,13.03339154,76.726,76.704,0.47021743]
[1771928990785,13.48499045,76.726,76.704,0.47021743]
[1771928994174,32.57588113,76.744,76.711,0.47021743]
[1771928994487,0.45159891,76.742,76.711,0.47021743]
[1771928995788,13.02989397,76.747,76.721,0.46754175]
[1771928996286,13.02989397,76.747,76.723,0.46754175]
[1771928996487,0.49587321,76.746,76.723,0.46754175]
[1771928999088,13.03016483,76.745,76.723,0.46754175]
[1771928999276,0.49587321,76.744,76.723,0.46754175]
[1771929000289,0.49587321,76.739,76.723,0.46754175]
[1771929001096,0.49587321,76.744,76.723,0.46754175]
[1771929001281,13.52435666,76.755,76.724,0.46754175]
[1771929001482,0.49587321,76.759,76.731,0.46754175]
[1771929001684,0.49587321,76.768,76.731,0.46754175]
[1771929002003,13.02468559,76.778,76.741,0.46754175]
[1771929002294,0.49587321,76.769,76.741,0.46754175]
[1771929003302,0.49587321,76.749,76.72,5.22569141]
[1771929003492,0.49587321,76.749,76.71,5.22569141]
[1771929004107,0.49587321,76.739,76.71,5.22569141]
[1771929004310,0.49587321,76.739,76.7,5.22569141]
[1771929004503,0.49587321,76.729,76.692,45.63709382]
[1771929005299,0.49587321,76.727,76.695,0.46754175]
[1771929005612,0.49587321,76.719,76.695,0.46754175]
[1771929006195,0.49587321,76.724,76.701,0.46754175]
[1771929007414,0.49587321,76.722,76.701,0.46754175]
[1771929007597,5.72156462,76.72,76.701,0.46754175]
[1771929007797,0.49587321,76.719,76.696,13.03843871]
[1771929007997,13.03390117,76.723,76.697,0.46754175]
[1771929008916,13.52977438,76.723,76.697,0.46754175]
[1771929009719,13.52977438,76.723,76.699,0.46754175]
[1771929010421,0.49587321,76.734,76.701,0.46754175]
[1771929011220,13.0318629,76.735,76.701,0.46754175]
[1771929011819,0.49587321,76.737,76.702,13.03746968]
[1771929012022,0.49587321,76.737,76.703,0.46754175]
[1771929013706,0.49587321,76.748,76.721,0.46754175]
[1771929015503,0.49587321,76.746,76.721,0.46754175]
[1771929018405,0.49587321,76.739,76.716,0.46754175]
[1771929022916,0.49587321,76.737,76.716,0.46754175]
[1771929025328,13.03169307,76.736,76.716,0.46754175]
[1771929025511,0.49438079,76.735,76.716,0.46754175]
[1771929030817,0.49438079,76.729,76.711,0.47628809]
[1771929031023,0.49438079,76.719,76.702,0.47628809]
[1771929031815,0.49438079,76.719,76.698,0.47628809]
[1771929032639,0.49438079,76.718,76.698,0.47628809]
[1771929032840,0.49438079,76.718,76.7,0.47628809]
[1771929035837,13.03408355,76.722,76.7,0.47628809]
[1771929036037,0.49438079,76.732,76.702,0.47628809]
[1771929036241,0.49438079,76.738,76.711,0.47628809]
[1771929040349,0.49438079,76.736,76.711,0.47628809]
[1771929041348,0.49438079,76.74,76.712,13.03577015]
[1771929041548,13.02823226,76.757,76.73,5.22569141]
[1771929041727,0.49438079,76.766,76.741,0.47628809]
[1771929042627,0.49438079,76.759,76.72,5.22569141]
[1771929043029,0.49438079,76.749,76.713,0.28432314]
[1771929043229,0.49438079,76.749,76.72,5.22569141]
[1771929043743,0.49438079,76.749,76.721,13.03424095]
[1771929044346,0.49438079,76.747,76.714,13.03543029]
[1771929044646,0.49438079,76.747,76.715,0.47628809]
[1771929044849,0.49438079,76.747,76.721,0.47628809]
[1771929045851,13.02999504,76.746,76.721,0.47628809]
[1771929046148,0.49438079,76.745,76.721,0.47628809]
[1771929048043,0.49438079,76.754,76.731,0.47628809]
[1771929048530,0.49438079,76.749,76.711,0.47628809]
[1771929049237,0.49438079,76.749,76.721,0.47628809]
[1771929052343,0.49438079,76.747,76.721,0.47628809]
[1771929052652,0.49438079,76.747,76.722,13.03407106]
[1771929052855,0.49438079,76.747,76.723,0.47628809]
[1771929053443,13.02965549,76.748,76.723,0.47628809]
[1771929053644,13.02744883,76.761,76.731,0.47628809]
[1771929055535,13.02778827,76.759,76.731,0.47628809]
[1771929055745,0.47893766,76.758,76.731,0.47628809]
[1771929057348,13.50706538,76.757,76.731,0.47628809]
[1771929057542,0.47893766,76.756,76.731,0.47628809]
[1771929059849,13.0284672,76.755,76.733,0.48935999]
[1771929060058,0.47893766,76.766,76.733,0.48935999]
[1771929060438,5.22352611,76.77,76.734,0.28432314]
[1771929060640,0.47893766,76.788,76.76,5.22352611]
[1771929060838,0.47893766,76.788,76.761,0.48935999]
[1771929061037,0.47893766,76.779,76.755,0.48935999]
[1771929061661,0.47893766,76.779,76.756,13.02829746]
[1771929061962,0.47893766,76.779,76.757,0.48935999]
[1771929062156,13.02456432,76.778,76.757,0.48935999]
[1771929062356,13.50350198,76.778,76.757,0.48935999]
[1771929062556,0.47893766,76.777,76.757,0.48935999]
[1771929064551,0.47893766,76.777,76.759,0.48935999]
[1771929066563,0.47893766,76.777,76.742,0.28432314]
[1771929066564,13.02269856,76.789,76.761,0.48935999]
[1771929066740,13.50163622,76.789,76.771,0.48935999]
[1771929066946,0.47893766,76.788,76.771,0.48935999]
[1771929069068,32.55542841,76.793,76.771,0.48935999]
[1771929069268,33.03436607,76.793,76.771,0.48935999]
[1771929069568,0.47893766,76.792,76.771,0.48935999]
[1771929071165,0.47893766,76.79,76.764,0.48935999]
[1771929072956,32.55542841,76.793,76.765,0.48935999]
[1771929074364,13.02100287,76.799,76.765,0.48935999]
[1771929074665,13.02100287,76.799,76.771,0.48935999]
[1771929075042,0.47893766,76.796,76.773,0.48935999]
[1771929077065,13.02168109,76.795,76.773,0.48935999]
[1771929077275,0.47893766,76.794,76.773,0.48935999]
[1771929077953,13.02168109,76.795,76.773,0.48935999]
[1771929078155,13.50061875,76.795,76.773,0.48935999]
[1771929078356,0.47893766,76.794,76.773,0.48935999]
[1771929079268,0.47893766,76.798,76.774,13.02524292]
[1771929079473,0.47893766,76.804,76.775,0.48935999]
[1771929079776,0.47893766,76.804,76.78,5.22352611]
[1771929079960,13.49824529,76.809,76.781,0.48935999]
[1771929082870,0.47893766,76.814,76.79,5.22352611]
[1771929083065,0.47893766,76.814,76.791,0.48935999]
[1771929083269,0.2,76.82,76.801,0.48935999]
[1771929083859,0.2,76.83,76.811,0.48218977]
[1771929084868,0.49596515,76.828,76.803,0.49288488]
[1771929086686,0.49596515,76.826,76.803,0.49288488]
[1771929088189,0.49596515,76.824,76.803,0.49288488]
[1771929090788,13.01693503,76.823,76.803,0.49288488]
[1771929094898,0.49596515,76.823,76.803,0.49288488]
[1771929098403,13.01710447,76.822,76.803,0.49288488]
[1771929098902,0.49596515,76.823,76.805,0.49288488]
[1771929099992,0.49596515,76.827,76.805,0.49288488]
[1771929100802,0.49596515,76.827,76.806,0.49288488]
[1771929102704,0.49596515,76.825,76.806,0.49288488]
[1771929103305,0.69596515,76.83,76.808,0.49288488]
[1771929103508,0.49596515,76.829,76.808,0.49288488]
[1771929104710,0.49596515,76.829,76.81,0.49288488]
[1771929105208,0.2,76.83,76.81,0.49288488]
[1771929105403,0.69596515,76.84,76.811,0.49288488]
[1771929105803,13.51018969,76.839,76.811,0.49288488]
[1771929106112,0.49596515,76.838,76.811,0.49288488]
[1771929107412,0.49596515,76.838,76.813,0.49288488]
[1771929107704,0.49596515,76.836,76.807,0.49288488]
[1771929110010,0.49596515,76.829,76.807,0.49288488]
[1771929110593,0.49596515,76.829,76.808,13.01947713]
[1771929111108,0.49596515,76.829,76.808,13.51236201]
[1771929111811,0.49596515,76.829,76.79,5.22352611]
[1771929112114,13.01608788,76.828,76.791,13.02235939]
[1771929112308,0.49596515,76.827,76.791,13.02235939]
[1771929113913,0.49596515,76.827,76.792,0.49288488]
[1771929115690,0.49596515,76.827,76.787,32.5571944]
[1771929115691,0.49374883,76.819,76.794,0.46020266]
[1771929117996,0.2,76.84,76.769,5.36086188]
[1771929117997,0.49374883,76.835,76.801,0.46020266]
[1771929118397,0.49374883,76.835,76.811,0.46020266]
[1771929118599,5.42352611,76.84,76.811,0.46020266]
[1771929118600,0.49374883,76.839,76.811,0.46020266]
[1771929120113,0.49374883,76.837,76.807,0.46020266]
[1771929120895,0.49374883,76.835,76.807,0.46020266]
[1771929121101,0.49374883,76.829,76.798,0.46020266]
[1771929121600,0.49374883,76.829,76.801,0.46020266]
[1771929122524,0.49374883,76.834,76.801,0.46020266]
[1771929124707,0.49374883,76.833,76.803,0.46020266]
[1771929124905,168.95145881,76.863,76.802,13.02049425]
[1771929124906,163.2,76.878,76.804,0.14216157]
[1771929125111,0.49374883,76.878,76.841,0.46020266]
[1771929125410,0.49374883,76.873,76.85,5.21189475]
[1771929125620,0.49374883,76.869,76.84,5.21189475]
[1771929125820,0.49374883,76.849,76.82,5.21189475]
[1771929126506,0.49374883,76.849,76.802,97.65370692]
[1771929126507,0.49374883,76.849,76.81,5.21189475]
[1771929126711,0.49374883,76.849,76.811,45.56639022]
[1771929127129,0.49374883,76.849,76.82,5.21189475]
[1771929127330,0.49374883,76.849,76.821,0.46020266]
[1771929128617,0.49374883,76.847,76.821,0.46020266]
[1771929130634,0.49374883,76.847,76.823,0.46020266]
[1771929133819,0.49374883,76.847,76.82,5.21189475]
[1771929133820,0.49374883,76.847,76.825,0.46020266]
[1771929134146,0.49374883,76.853,76.831,0.46020266]
[1771929136030,0.49374883,76.853,76.832,13.01541024]
[1771929136934,0.49374883,76.853,76.832,13.4756129]
[1771929140638,0.2,76.87,76.841,0.46020266]
[1771929140820,0.2,76.87,76.851,0.46020266]
[1771929141617,0.49374883,76.869,76.851,0.46020266]
[1771929142421,0.2,76.87,76.861,0.46020266]
[1771929143045,0.2,76.87,76.86,5.21189475]
[1771929143252,0.69374883,76.87,76.855,0.46020266]
[1771929143746,0.69374883,76.87,76.855,13.47167083]
[1771929144041,0.2,76.87,76.855,13.47167083]
[1771929144247,0.46454541,76.869,76.855,13.47167083]
[1771929144441,0.46454541,76.869,76.855,13.01146817]
[1771929145646,0.46454541,76.869,76.851,13.47006155]
[1771929148644,0.46454541,76.869,76.853,13.01185379]
[1771929151544,0.47419186,76.869,76.853,13.01185379]
[1771929151842,0.47419186,76.869,76.853,12.51185379]
[1771929152348,0.2,76.87,76.861,0.45786913]
[1771929152542,0.47419186,76.879,76.861,0.45786913]
[1771929152849,0.47419186,76.884,76.861,0.45786913]
[1771929157737,0.47419186,76.884,76.862,13.46819933]
[1771929159248,0.47419186,76.884,76.863,0.45786913]
[1771929162252,0.47419186,76.883,76.862,13.0103302]
[1771929163233,0.47419186,76.883,76.862,13.46819933]
[1771929164652,0.47419186,76.881,76.853,0.45786913]
[1771929164954,0.47419186,76.869,76.838,0.45786913]
[1771929166655,0.47419186,76.869,76.833,0.45786913]
[1771929169766,5.21189475,76.87,76.83,5.21189475]
[1771929169767,0.47419186,76.867,76.835,0.45786913]
[1771929170564,0.47419186,76.849,76.83,13.01562191]
[1771929170862,0.47419186,76.849,76.82,0.45786913]
[1771929171238,0.47419186,76.849,76.822,13.47496969]
[1771929171644,0.47419186,76.849,76.823,0.45786913]
[1771929174272,13.01270039,76.848,76.823,0.45786913]
[1771929174465,0.47419186,76.847,76.823,0.45786913]
[1771929174867,0.47419186,76.847,76.825,0.45892489]
[1771929175961,5.21189475,76.86,76.824,13.01676559]
[1771929175962,0.48863152,76.86,76.831,0.45892489]
[1771929176165,0.48863152,76.858,76.831,0.45892489]
[1771929176370,0.48863152,76.856,76.833,0.45892489]
[1771929177070,13.0111766,76.857,76.833,0.45892489]
[1771929178252,0.48863152,76.856,76.833,0.45892489]
[1771929178775,0.48863152,76.854,76.833,0.45892489]
[1771929179856,0.48863152,76.854,76.834,13.47399634]
[1771929180057,0.48863152,76.862,76.835,0.45892489]
[1771929180676,0.48863152,76.86,76.835,0.45892489]
[1771929182382,0.48863152,76.86,76.83,13.01562775]
[1771929182383,0.48863152,76.859,76.83,13.01562775]
[1771929182768,0.48863152,76.857,76.83,0.45892489]
[1771929184861,32.52541301,76.863,76.812,13.01863929]
[1771929184862,0.48863152,76.839,76.812,13.01863929]
[1771929185070,0.48863152,76.829,76.803,0.45892489]
[1771929185273,0.48863152,76.829,76.794,0.45892489]
[1771929186178,0.48863152,76.819,76.794,0.45892489]
[1771929187057,0.48863152,76.817,76.795,0.45892489]
[1771929187261,0.48863152,76.817,76.759,5.36086188]
[1771929187262,0.48863152,76.817,76.784,0.45892489]
[1771929187479,0.48863152,76.809,76.77,5.21071357]
[1771929187980,0.48863152,76.817,76.78,5.21071357]
[1771929189470,0.48863152,76.817,76.783,0.45892489]
[1771929191683,0.48863152,76.815,76.785,0.45892489]
[1771929192067,0.48863152,76.799,76.78,13.02416134]
[1771929192279,0.48863152,76.799,76.774,13.02509404]
[1771929194083,0.48863152,76.799,76.773,0.45892489]
[1771929194697,0.48863152,76.798,76.773,0.45892489]
[1771929195665,0.48863152,76.789,76.761,13.02744883]
[1771929196068,0.48863152,76.789,76.762,0.45892489]
[1771929196278,0.48863152,76.787,76.764,0.45892489]
[1771929197088,13.02237023,76.791,76.764,0.45892489]
[1771929197275,13.51100175,76.791,76.764,0.45892489]
[1771929197674,0.48863152,76.789,76.761,13.02744883]
[1771929197866,0.48863152,76.789,76.76,0.2]
[1771929198069,0.48863152,76.779,76.76,0.2]
[1771929198274,0.48863152,76.777,76.76,0.2]
[1771929198592,0.48863152,76.769,76.76,0.2]
[1771929199097,0.48863152,76.769,76.741,0.45892489]
[1771929199667,0.48863152,76.759,76.713,58.64]
[1771929199889,0.48863152,76.759,76.675,52.16789799]
[1771929199890,0.45755309,76.739,76.714,0.45892489]
[1771929200187,201.88074707,76.778,76.72,5.21071357]
[1771929200188,0.45755309,76.746,76.72,5.21071357]
[1771929200490,0.45755309,76.746,76.723,0.45892489]
[1771929200888,0.45755309,76.746,76.722,13.03407106]
[1771929200889,0.45755309,76.746,76.717,0.45892489]
[1771929201076,0.45755309,76.739,76.711,0.45892489]
[1771929201390,0.45755309,76.76,76.731,0.45892489]
[1771929201883,0.45755309,76.759,76.731,0.45892489]
[1771929202794,0.45755309,76.759,76.722,0.45892489]
[1771929202977,0.45755309,76.749,76.72,0.45892489]
[1771929203374,32.55962584,76.783,76.741,0.45892489]
[1771929203596,0.45755309,76.769,76.732,0.47580801]
[1771929204693,0.45755309,76.759,76.721,0.47580801]
[1771929204894,0.45755309,76.747,76.712,0.45564636]
[1771929205193,0.45755309,76.739,76.712,0.45564636]
[1771929205573,5.21071357,76.75,76.721,0.45564636]
[1771929205780,0.45755309,76.751,76.721,0.45564636]
[1771929207102,0.45755309,76.749,76.723,0.45564636]
[1771929208796,0.45755309,76.739,76.711,0.45564636]
[1771929208999,13.03135343,76.738,76.704,13.03704705]
[1771929209322,5.21071357,76.72,76.7,0.1]
[1771929209477,5.66826666,76.72,76.7,0.1]
[1771929209680,0.45755309,76.72,76.7,0.1]
[1771929210006,0.45755309,76.719,76.7,0.1]
[1771929210295,0.45755309,76.719,76.691,0.45564636]
[1771929210493,0.45755309,76.719,76.693,0.45564636]
[1771929211204,0.45755309,76.725,76.695,0.45564636]
[1771929211703,0.45755309,76.738,76.701,0.45564636]
[1771929211903,0.45755309,76.738,76.711,0.45564636]
[1771929212202,5.21071357,76.75,76.694,45.63590371]
[1771929212203,0.45755309,76.751,76.721,0.45564636]
[1771929212498,0.45755309,76.749,76.712,0.45564636]
[1771929212676,0.45755309,76.739,76.712,0.45564636]
[1771929212880,0.70494494,76.726,76.712,0.45564636]
[1771929213200,0.45755309,76.739,76.694,45.63590371]
[1771929213201,0.45755309,76.759,76.723,0.45564636]
[1771929213503,5.21071357,76.75,76.723,0.45564636]
[1771929213706,0.45755309,76.749,76.717,0.45564636]
[1771929214895,0.45755309,76.749,76.719,0.45564636]
[1771929215897,45.59785298,76.758,76.71,5.21071357]
[1771929215898,0.45755309,76.739,76.712,0.45564636]
[1771929218190,0.45755309,76.739,76.713,13.03560022]
[1771929218394,3.69383402,76.762,76.69,0.2]
[1771929218395,0.45755309,76.729,76.703,13.03729971]
[1771929218589,0.45755309,76.719,76.693,0.45564636]
[1771929218796,0.45755309,76.709,76.69,0.2]
[1771929219379,0.45755309,76.709,76.69,13.23943765]
[1771929219709,0.45755309,76.719,76.691,0.45564636]
[1771929220511,5.21071357,76.72,76.69,18.45015122]
[1771929220512,13.49230373,76.718,76.693,0.45564636]
[1771929220701,0.45755309,76.717,76.693,0.45564636]
[1771929221587,5.21071357,76.73,76.693,0.45564636]
[1771929221784,5.21071357,76.72,76.693,0.45564636]
[1771929221999,0.45755309,76.719,76.693,0.45564636]
[1771929222617,0.45755309,76.719,76.695,0.45564636]
[1771929222911,0.45755309,76.709,76.69,0.2]
[1771929223280,5.21071357,76.72,76.692,0.45564636]
[1771929223503,0.45755309,76.723,76.692,0.45564636]
[1771929224385,13.03407106,76.722,76.692,0.45564636]
[1771929224697,13.49162415,76.722,76.692,0.45564636]
[1771929224907,0.45755309,76.721,76.694,0.45564636]
[1771929225101,5.21071357,76.72,76.694,0.45564636]
[1771929225302,0.45755309,76.719,76.694,0.45564636]
[1771929226410,0.45755309,76.709,76.68,0.2]
[1771929226596,0.45755309,76.709,76.682,0.45564636]
[1771929226794,5.21071357,76.72,76.682,0.45564636]
[1771929227102,5.21071357,76.72,76.691,0.45564636]
[1771929227290,32.57931901,76.736,76.68,0.2]
[1771929227291,0.45755309,76.709,76.682,0.45564636]
[1771929227498,5.21071357,76.7,76.68,0.2]
[1771929227809,0.45755309,76.699,76.68,0.2]
[1771929228191,5.21071357,76.69,76.67,0.2]
[1771929228386,0.48851114,76.689,76.67,0.2]
[1771929228789,0.48851114,76.689,76.66,0.2]
[1771929228990,0.48851114,76.679,76.66,0.2]
[1771929229510,5.21071357,76.67,76.66,0.2]
[1771929229908,0.48851114,76.669,76.65,0.2]
[1771929230891,0.48851114,76.659,76.65,0.2]
[1771929231506,0.48851114,76.667,76.65,0.2]
[1771929232412,32.6021216,76.683,76.651,13.04614421]
[1771929232413,0.48851114,76.673,76.651,13.04614421]
[1771929232712,0.48851114,76.673,76.652,0.45564636]
[1771929233017,0.48851114,76.689,76.652,0.45564636]
[1771929233608,0.48851114,76.689,76.661,0.45564636]
[1771929234218,13.03874662,76.695,76.661,0.45564636]
[1771929234414,13.03874662,76.695,76.66,5.21071357]
[1771929234415,0.48851114,76.694,76.663,0.45564636]
[1771929235200,0.49061393,76.689,76.663,0.45564636]
[1771929236714,0.49061393,76.687,76.658,13.04481083]
[1771929236913,0.49061393,76.679,76.656,0.49273884]
[1771929237810,0.49061393,76.679,76.657,13.04512308]
[1771929238318,0.49061393,76.679,76.663,0.2]
[1771929238718,0.49061393,76.693,76.664,0.49273884]
[1771929239102,0.49061393,76.693,76.673,0.2]
[1771929239327,0.49061393,76.693,76.673,0.69273884]
[1771929239697,0.49061393,76.693,76.674,0.49273884]
[1771929240019,0.49061393,76.693,76.683,0.2]
[1771929240522,0.49061393,76.689,76.673,0.2]
[1771929240701,13.5321643,76.678,76.663,0.2]
[1771929245027,0.49061393,76.699,76.671,0.49273884]
[1771929246116,0.49061393,76.699,76.674,0.49273884]
[1771929246623,13.52876355,76.698,76.674,0.49273884]
[1771929246839,13.52876355,76.698,76.683,0.2]
[1771929247021,13.03814962,76.698,76.683,0.2]
[1771929247335,3.69383402,76.712,76.684,0.49273884]
[1771929247336,13.03752816,76.702,76.684,0.49273884]
[1771929247631,0.49061393,76.71,76.684,0.49273884]
[1771929247632,13.03627996,76.709,76.684,0.49273884]
[1771929247806,0.49061393,76.708,76.684,0.49273884]
[1771929249328,46.11878345,76.707,76.684,0.49273884]
[1771929258732,13.03603626,76.711,76.686,0.49273884]
[1771929259229,0.49061393,76.724,76.691,0.49273884]
[1771929260124,13.03403079,76.723,76.693,0.49273884]
[1771929262332,13.03403079,76.723,76.694,13.03882963]
[1771929262529,13.03403079,76.723,76.695,0.49273884]
[1771929262844,13.03334288,76.727,76.701,0.49273884]
[1771929263930,13.48548439,76.727,76.701,0.49273884]
[1771929264236,0.45214151,76.726,76.701,0.49273884]
[1771929264840,0.45214151,76.726,76.705,0.48523843]
[1771929264841,13.03356142,76.725,76.705,0.48523843]
[1771929265338,0.45768095,76.719,76.695,0.45116722]
[1771929265635,0.45768095,76.719,76.695,13.48982684]
[1771929266537,0.45768095,76.719,76.69,0.45116722]
[1771929267419,0.45768095,76.717,76.69,0.45116722]
[1771929267623,0.45768095,76.717,76.686,13.0401594]
[1771929268227,13.03475064,76.718,76.691,0.45116722]
[1771929269423,13.03409185,76.722,76.693,0.45116722]
[1771929271348,0.45768095,76.721,76.693,0.45116722]
[1771929272144,0.45768095,76.721,76.695,0.45116722]
[1771929272145,13.03441084,76.72,76.695,0.45116722]
[1771929272448,0.45768095,76.719,76.695,0.45116722]
[1771929273632,0.45768095,76.717,76.691,0.45116722]
[1771929273944,0.45768095,76.709,76.681,0.45116722]
[1771929276046,0.45768095,76.707,76.683,0.45116722]
[1771929277245,0.45768095,76.707,76.684,13.04052996]
[1771929277440,0.45768095,76.707,76.685,0.45116722]
[1771929280653,13.03678982,76.706,76.685,0.45116722]
[1771929281251,13.03678982,76.706,76.686,13.04018986]
[1771929281458,13.03678982,76.706,76.687,0.45116722]
[1771929283159,0.45768095,76.71,76.687,0.45116722]
[1771929286264,0.45768095,76.708,76.687,0.45116722]
[1771929289950,0.45768095,76.708,76.689,0.45116722]
[1771929294170,13.49430081,76.707,76.689,0.45116722]
[1771929295254,0.47758107,76.711,76.689,0.45116722]
[1771929296758,0.47758107,76.716,76.69,0.49752582]
[1771929298774,0.47758107,76.714,76.69,0.49752582]
[1771929299854,0.47758107,76.709,76.671,0.49752582]
[1771929301070,0.47758107,76.707,76.673,0.49752582]
[1771929301458,0.47758107,76.707,76.681,0.49752582]
[1771929301757,13.03644991,76.708,76.681,0.49752582]
[1771929301957,13.03595811,76.711,76.691,0.49752582]
[1771929303059,0.47758107,76.711,76.691,0.49752582]
[1771929303579,13.03403031,76.723,76.693,0.49752582]
[1771929304261,13.03403031,76.723,76.701,0.49752582]
[1771929304792,0.47758107,76.729,76.701,0.49752582]
[1771929304963,169.04195939,76.756,76.711,0.49752582]
[1771929304964,0.47758107,76.743,76.711,0.49752582]